fUSD/lending_fUSD_20240327
["ID","MTS","AMOUNT","RATE_DAILY","PERIOD"]
[320797299,1711561872617,-500.0,0.0005452,120]
[320797300,1711561872628,-500.0,0.0005452,120]
[320797301,1711561872638,-500.0,0.0005452,7]
[320797302,1711561872648,-500.0,0.0005452,120]
[320797303,1711561872658,-345.9,0.0005452,120]
[320797304,1711561872669,-500.0,0.0005452,120]
[320797305,1711561872679,-969.37,0.0005452,120]
[320797306,1711561872689,-500.0,0.0005452,120]
[320797307,1711561872703,-500.0,0.0005452,120]
[320797308,1711561872713,-500.0,0.0005452,120]
[320797309,1711561872723,-500.0,0.0005452,120]
[320797310,1711561872733,-500.0,0.0005452,120]
[320797311,1711561872744,-712.96,0.0005452,120]
[320797312,1711561872754,-500.0,0.0005452,120]
[320797313,1711561872764,-500.0,0.0005452,120]
[320797314,1711561872774,-500.0,0.0005452,120]
[320797315,1711561872785,-504.40688602,0.0005452,120]
[320797316,1711561872796,-500.0,0.0005452,120]
[320797317,1711561872806,-500.0,0.0005452,120]
[320797318,1711561872817,-500.0,0.0005452,120]
[320797319,1711561872829,-607.67,0.0005452,120]
[320797320,1711561872840,-500.0,0.0005452,120]
[320797321,1711561872852,-500.0,0.0005452,120]
[320797322,1711561872865,-500.0,0.0005452,120]
[320797323,1711561872876,-500.0,0.0005452,120]
[320797324,1711561872886,-500.0,0.0005452,120]
[320797325,1711561872897,-500.0,0.0005452,120]
[320797326,1711561872907,-572.09,0.0005452,120]
[320797327,1711561872918,-500.0,0.0005452,120]
[320797328,1711561872928,-633.56,0.0005452,120]
[320797329,1711561872938,-505.67431655,0.0005452,120]
[320797330,1711561872949,-1276.08,0.0005452,120]
[320797331,1711561872959,-500.0,0.0005452,120]
[320797332,1711561872969,-302.296389,0.0005452,120]
[320797333,1711561872979,-500.0,0.0005452,120]
[320797334,1711561872989,-500.0,0.0005452,120]
[320797335,1711561872999,-530.2,0.0005452,120]
[320797336,1711561873009,-302.296389,0.0005452,120]
[320797337,1711561873019,-151.0,0.0005452,120]
[320797338,1711561873029,-743.04,0.0005452,120]
[320797339,1711561873039,-500.0,0.0005452,120]
[320797340,1711561873049,-500.0,0.0005452,120]
[320797341,1711561873059,-500.0,0.0005452,120]
[320797342,1711561873069,-500.0,0.0005452,120]
[320797343,1711561873080,-994.38,0.0005452,120]
[320797344,1711561873090,-645.47,0.0005452,120]
[320797345,1711561873099,-500.0,0.0005452,120]
[320797346,1711561873109,-1464.37,0.0005452,120]
[320797347,1711561873118,-500.0,0.0005452,120]
[320797348,1711561873128,-151.0,0.0005452,120]
[320797349,1711561873138,-500.0,0.0005452,120]
[320797350,1711561873148,-500.0,0.0005452,120]
[320797351,1711561873158,-500.0,0.0005452,120]
[320797352,1711561873168,-500.0,0.0005452,120]
[320797353,1711561873179,-1308.17,0.0005452,120]
[320797354,1711561873189,-500.0,0.0005452,120]
[320797355,1711561873199,-500.0,0.0005452,120]
[320797356,1711561873209,-500.0,0.0005452,120]
[320797357,1711561873220,-500.0,0.0005452,120]
[320797358,1711561873230,-500.0,0.0005452,120]
[320797359,1711561873240,-500.0,0.0005452,120]
[320797360,1711561873252,-500.0,0.0005452,120]
[320797361,1711561873262,-500.0,0.0005452,120]
[320797362,1711561873272,-500.0,0.0005452,120]
[320797363,1711561873282,-1966.83,0.0005452,120]
[320797364,1711561873292,-500.0,0.0005452,120]
[320797365,1711561873302,-882.23,0.0005452,120]
[320797366,1711561873312,-1167.58,0.0005452,120]
[320797367,1711561873322,-500.0,0.0005452,120]
[320797368,1711561873335,-500.0,0.0005452,120]
[320797369,1711561873344,-939.99,0.0005452,120]
[320797370,1711561873355,-500.0,0.0005452,120]
[320797371,1711561873365,-181.62370424,0.0005452,120]
[320797372,1711561873375,-1680.42,0.0005452,120]
[320797373,1711561873385,-500.0,0.0005452,120]
[320797374,1711561873394,-500.0,0.0005452,120]
[320797375,1711561873404,-654.45,0.0005452,120]
[320797376,1711561873414,-1090.78,0.0005452,120]
[320797377,1711561873425,-500.0,0.0005452,120]
[320797378,1711561873435,-500.0,0.0005452,120]
[320797379,1711561873445,-500.0,0.0005452,120]
[320797380,1711561873456,-5693.99,0.0005452,120]
[320797381,1711561873466,-2767.8,0.0005452,120]
[320797382,1711561873477,-500.0,0.0005452,120]
[320797383,1711561873487,-631.11,0.0005452,120]
[320797384,1711561873497,-151.0,0.0005452,120]
[320797385,1711561873508,-500.0,0.0005452,120]
[320797386,1711561873519,-500.0,0.0005452,120]
[320797387,1711561873530,-500.0,0.0005452,120]
[320797388,1711561873540,-500.0,0.0005452,120]
[320797389,1711561873551,-500.0,0.0005452,120]
[320797390,1711561873561,-638.94,0.0005452,120]
[320797391,1711561873574,-500.0,0.0005452,120]
[320797392,1711561873586,-500.0,0.0005452,120]
[320797393,1711561873602,-3576.66,0.0005452,120]
[320797394,1711561873613,-1880.06,0.0005452,120]
[320797395,1711561873627,-597.69,0.0005452,120]
[320797396,1711561873638,-1154.81,0.0005452,120]
[320797397,1711561873649,-440.80439916,0.0005452,120]
[320797398,1711561873660,-500.0,0.0005452,120]
[320797399,1711561873670,-500.0,0.0005452,120]
[320797400,1711561873680,-11680.99,0.0005452,120]
[320797401,1711561873690,-1513.74,0.0005452,120]
[320797402,1711561873699,-500.0,0.0005452,120]
[320797403,1711561873709,-500.0,0.0005452,120]
[320797404,1711561873726,-500.0,0.0005452,120]
[320797405,1711561873736,-500.0,0.0005452,120]
[320797406,1711561873746,-4891.01,0.0005452,120]
[320797407,1711561873756,-500.0,0.0005452,120]
[320797408,1711561873766,-820.32,0.0005452,120]
[320797409,1711561873775,-2266.19,0.0005452,120]
[320797410,1711561873785,-500.0,0.0005452,120]
[320797411,1711561873794,-4319.88,0.0005452,120]
[320797412,1711561873804,-500.0,0.0005452,120]
[320797413,1711561873814,-638.01,0.0005452,120]
[320797414,1711561873826,-500.0,0.0005452,120]
[320797415,1711561873837,-500.0,0.0005452,120]
[320797416,1711561873848,-1948.43,0.0005452,120]
[320797417,1711561873861,-594.89,0.0005452,120]
[320797418,1711561873871,-58191.63,0.0005452,120]
[320797419,1711561873882,-4872.06,0.0005452,120]
[320797420,1711561873892,-500.0,0.0005452,120]
[320797421,1711561873902,-500.0,0.0005452,120]
[320797422,1711561873912,-500.0,0.0005452,120]
[320797423,1711561873922,-916.42,0.0005452,120]
[320797424,1711561873933,-25819.15,0.0005452,120]
[320797425,1711561873943,-500.0,0.0005452,120]
[320797426,1711561873961,-672.12,0.0005452,120]
[320797427,1711561874228,-500.0,0.0005452,120]
[320797428,1711561874332,-500.0,0.0005452,120]
[320797429,1711561874342,-2822.64,0.0005452,120]
[320797430,1711561874352,-5739.01,0.0005452,120]
[320797431,1711561874363,-500.0,0.0005452,120]
[320797432,1711561874373,-7896.21,0.0005452,120]
[320797433,1711561874383,-1773.91,0.0005452,120]
[320797434,1711561874393,-1599.36,0.0005452,120]
[320797435,1711561874402,-500.0,0.0005452,120]
[320797436,1711561874412,-500.0,0.0005452,120]
[320797437,1711561874422,-580.5,0.0005452,120]
[320797438,1711561874432,-500.0,0.0005452,120]
[320797439,1711561874442,-500.0,0.0005452,120]
[320797440,1711561874451,-500.0,0.0005452,120]
[320797441,1711561874461,-500.0,0.0005452,120]
[320797442,1711561874471,-500.0,0.0005452,120]
[320797443,1711561874481,-702.31,0.0005452,120]
[320797444,1711561874491,-962.02,0.0005452,120]
[320797445,1711561874501,-4077.6,0.0005452,120]
[320797446,1711561874510,-1910.86,0.0005452,120]
[320797447,1711561874521,-500.0,0.0005452,120]
[320797448,1711561874530,-500.0,0.0005452,120]
[320797449,1711561874540,-360.78982427,0.0005452,120]
[320797450,1711561874550,-993.68,0.0005452,120]
[320797451,1711561874559,-1981.61,0.0005452,120]
[320797452,1711561874569,-151.0,0.0005452,120]
[320797453,1711561874579,-1310.9,0.0005452,120]
[320797454,1711561874588,-5861.79,0.0005452,120]
[320797455,1711561874598,-500.0,0.0005452,120]
[320797456,1711561874607,-500.0,0.0005452,120]
[320797457,1711561874624,-500.0,0.0005452,120]
[320797458,1711561874634,-861.74,0.0005452,120]
[320797459,1711561874650,-3868.28,0.0005452,120]
[320797460,1711561874670,-500.0,0.0005452,120]
[320797461,1711561874692,-4602.46,0.0005452,120]
[320797462,1711561874715,-500.0,0.0005452,120]
[320797463,1711561874725,-500.0,0.0005452,120]
[320797464,1711561874734,-469.4140654,0.0005452,120]
[320797465,1711561874746,-2663.41,0.0005452,120]
[320797466,1711561874760,-2285.5,0.0005452,120]
[320797467,1711561874775,-7201.79,0.0005452,120]
[320797468,1711561874804,-1041.92,0.0005452,120]
[320797469,1711561874833,-500.0,0.0005452,120]
[320797470,1711561874862,-2054.16,0.0005452,120]
[320797471,1711561874880,-500.0,0.0005452,120]
[320797472,1711561874892,-500.0,0.0005452,120]
[320797473,1711561874902,-500.0,0.0005452,120]
[320797474,1711561874912,-637.0,0.0005452,120]
[320797475,1711561874921,-1431.94,0.0005452,120]
[320797476,1711561874932,-500.0,0.0005452,120]
[320797477,1711561874942,-500.0,0.0005452,120]
[320797478,1711561874952,-18909.02,0.0005452,120]
[320797479,1711561874963,-1528.43,0.0005452,120]
[320797480,1711561874972,-836.18,0.0005452,120]
[320797481,1711561874982,-1715.09,0.0005452,120]
[320797482,1711561874991,-543.42,0.0005452,120]
[320797483,1711561875001,-500.0,0.0005452,120]
[320797484,1711561875011,-1000.0,0.0005452,14]
[320797485,1711561875020,-500.0,0.0005452,120]
[320797486,1711561875030,-500.0,0.0005452,120]
[320797487,1711561875039,-2529.3,0.0005452,120]
[320797488,1711561875049,-1204.05,0.0005452,120]
[320797489,1711561875059,-500.0,0.0005452,120]
[320797490,1711561875069,-500.0,0.0005452,120]
[320797491,1711561875080,-500.0,0.0005452,120]
[320797492,1711561875090,-1890.07,0.0005452,120]
[320797493,1711561875100,-882.15,0.0005452,120]
[320797494,1711561875110,-1395.77,0.0005452,120]
[320797495,1711561875120,-500.0,0.0005452,120]
[320797496,1711561875130,-500.0,0.0005452,120]
[320797497,1711561875139,-500.0,0.0005452,120]
[320797498,1711561875148,-500.0,0.0005452,120]
[320797499,1711561875158,-500.0,0.0005452,120]
[320797500,1711561875168,-22066.4,0.0005452,120]
[320797501,1711561875178,-3276.54,0.0005452,120]
[320797502,1711561875187,-9133.29,0.0005452,120]
[320797503,1711561875196,-500.0,0.0005452,120]
[320797504,1711561875206,-334.07,0.0005452,120]
[320797505,1711561875215,-3779.21,0.0005452,120]
[320797506,1711561875225,-500.0,0.0005452,120]
[320797507,1711561875234,-505.39,0.0005452,120]
[320797508,1711561875244,-1407.53,0.0005452,120]
[320797509,1711561875253,-500.0,0.0005452,120]
[320797510,1711561875263,-500.0,0.0005452,120]
[320797511,1711561875272,-500.0,0.0005452,120]
[320797512,1711561875282,-264.327424,0.0005452,30]
[320797513,1711561875292,-500.02011406,0.0005452,120]
[320797514,1711561875301,-1780.21,0.0005452,120]
[320797515,1711561875311,-744.71,0.0005452,120]
[320797516,1711561875320,-3375.62,0.0005452,120]
[320797517,1711561875330,-500.0,0.0005452,120]
[320797518,1711561875340,-1245.33,0.0005452,120]
[320797519,1711561875349,-866.75,0.0005452,120]
[320797520,1711561875358,-825.22,0.0005452,120]
[320797521,1711561875367,-500.0,0.0005452,120]
[320797522,1711561875377,-500.0,0.0005452,120]
[320797523,1711561875387,-602.12593737,0.0005452,120]
[320797524,1711561875397,-500.0,0.0005452,120]
[320797525,1711561875406,-2499.0,0.0005452,120]
[320797526,1711561875416,-1139.82,0.0005452,120]
[320797527,1711561875426,-3390.46,0.0005452,120]
[320797528,1711561875436,-500.0,0.0005452,120]
[320797529,1711561875446,-500.0,0.0005452,120]
[320797530,1711561875456,-500.0,0.0005452,120]
[320797531,1711561875465,-2297.82,0.0005452,120]
[320797532,1711561875475,-2115.9,0.0005452,120]
[320797533,1711561875485,-36215.98,0.0005452,120]
[320797534,1711561875495,-500.0,0.0005452,120]
[320797535,1711561875505,-504.0,0.0005452,120]
[320797536,1711561875515,-500.0,0.0005452,120]
[320797537,1711561875525,-635.43,0.0005452,120]
[320797538,1711561875534,-509.72,0.0005452,7]
[320797539,1711561875544,-500.0,0.0005452,120]
[320797540,1711561875554,-1985.21,0.0005452,120]
[320797541,1711561875563,-500.0,0.0005452,120]
[320797542,1711561875573,-4093.44,0.0005452,120]
[320797543,1711561875584,-598.33,0.0005452,120]
[320797544,1711561875594,-479.754063,0.0005452,120]
[320797545,1711561875607,-500.0,0.0005452,120]
[320797546,1711561875617,-3703.02,0.0005452,120]
[320797547,1711561875627,-3170.6,0.0005452,120]
[320797548,1711561875637,-479.754063,0.0005452,120]
[320797549,1711561875648,-4518.78,0.0005452,120]
[320797550,1711561875658,-500.0,0.0005452,120]
[320797551,1711561875668,-816.34,0.0005452,120]
[320797552,1711561875678,-500.0,0.0005452,120]
[320797553,1711561875687,-550.58,0.0005452,120]
[320797554,1711561875697,-5597.96,0.0005452,120]
[320797555,1711561875708,-500.0,0.0005452,2]
[320797556,1711561875718,-500.0,0.0005452,120]
[320797557,1711561875728,-1850.45,0.0005452,120]
[320797558,1711561875738,-3365.42,0.0005452,120]
[320797559,1711561875748,-500.0,0.0005452,120]
[320797560,1711561875757,-543.16,0.0005452,120]
[320797561,1711561875768,-500.0,0.0005452,120]
[320797562,1711561875778,-1437.25,0.0005452,120]
[320797563,1711561875788,-500.0,0.0005452,120]
[320797564,1711561875799,-500.0,0.0005452,120]
[320797565,1711561875810,-500.0,0.0005452,120]
[320797566,1711561875820,-13261.96,0.0005452,120]
[320797567,1711561875833,-500.0,0.0005452,120]
[320797568,1711561875845,-500.0,0.0005452,120]
[320797569,1711561875856,-500.0,0.0005452,120]
[320797570,1711561875868,-500.0,0.0005452,120]
[320797571,1711561875878,-1655.41,0.0005452,120]
[320797572,1711561875889,-688.55,0.0005452,120]
[320797573,1711561875899,-2460.7,0.0005452,120]
[320797574,1711561875910,-1308.22,0.0005452,120]
[320797575,1711561875921,-500.0,0.0005452,120]
[320797576,1711561875932,-500.0,0.0005452,120]
[320797577,1711561875943,-500.0,0.0005452,120]
[320797578,1711561875953,-500.0,0.0005452,120]
[320797579,1711561875963,-606.26,0.0005452,120]
[320797580,1711561875973,-3292.56,0.0005452,120]
[320797581,1711561875984,-4771.81,0.0005452,120]
[320797582,1711561875993,-1591.58,0.0005452,120]
[320797583,1711561876003,-2911.12,0.0005452,120]
[320797584,1711561876014,-8314.67,0.0005452,21]
[320797585,1711561876025,-500.0,0.0005452,120]
[320797586,1711561876035,-515.6,0.0005452,120]
[320797587,1711561876046,-1246.89,0.0005452,120]
[320797588,1711561876056,-1689.16,0.0005452,120]
[320797589,1711561876067,-500.0,0.0005452,120]
[320797590,1711561876080,-500.0,0.0005452,120]
[320797591,1711561876091,-770.25,0.0005452,120]
[320797592,1711561876101,-500.0,0.0005452,120]
[320797593,1711561876111,-500.0,0.0005452,120]
[320797594,1711561876122,-500.0,0.0005452,120]
[320797595,1711561876132,-8380.88,0.0005452,120]
[320797596,1711561876142,-614.46,0.0005452,120]
[320797597,1711561876152,-500.0,0.0005452,120]
[320797598,1711561876162,-2989.36,0.0005452,120]
[320797599,1711561876172,-500.0,0.0005452,2]
[320797600,1711561876182,-10959.62,0.0005452,120]
[320797601,1711561876192,-521.47,0.0005452,120]
[320797602,1711561876202,-12744.26,0.0005452,120]
[320797603,1711561876212,-2319.97,0.0005452,120]
[320797604,1711561876222,-2645.1,0.0005452,120]
[320797605,1711561876232,-758.38,0.0005452,120]
[320797606,1711561876242,-500.0,0.0005452,120]
[320797607,1711561876252,-500.0,0.0005452,120]
[320797608,1711561876262,-500.0,0.0005452,120]
[320797609,1711561876273,-500.0,0.0005452,120]
[320797610,1711561876283,-500.0,0.0005452,120]
[320797611,1711561876293,-500.0,0.0005452,120]
[320797612,1711561876302,-11517.5,0.0005452,120]
[320797613,1711561876312,-2628.59,0.0005452,120]
[320797614,1711561876322,-1981.45,0.0005452,120]
[320797615,1711561876336,-500.0,0.0005452,120]
[320797616,1711561876346,-500.0,0.0005452,2]
[320797617,1711561876355,-2618.9,0.0005452,120]
[320797618,1711561876365,-500.0,0.0005452,120]
[320797619,1711561876376,-500.0,0.0005452,120]
[320797620,1711561876386,-2635.65,0.0005452,120]
[320797621,1711561876396,-2440.72,0.0005452,120]
[320797622,1711561876406,-1641.2,0.0005452,120]
[320797623,1711561876415,-500.0,0.0005452,120]
[320797624,1711561876425,-1422.66,0.0005452,120]
[320797625,1711561876435,-1953.26,0.0005452,120]
[320797626,1711561876445,-500.0,0.0005452,120]
[320797627,1711561876455,-500.0,0.0005452,120]
[320797628,1711561876465,-680.59,0.0005452,120]
[320797629,1711561876475,-500.0,0.0005452,120]
[320797630,1711561876485,-851.11,0.0005452,120]
[320797631,1711561876495,-516.23,0.0005452,120]
[320797632,1711561876506,-833.36,0.0005452,120]
[320797633,1711561876516,-4524.02,0.0005452,120]
[320797634,1711561876528,-500.0,0.0005452,120]
[320797635,1711561876538,-2147.51,0.0005452,120]
[320797636,1711561876548,-500.0,0.0005452,120]
[320797637,1711561876558,-500.0,0.0005452,120]
[320797638,1711561876568,-1826.97,0.0005452,120]
[320797639,1711561876581,-500.0,0.0005452,120]
[320797640,1711561876591,-1200.4,0.0005452,120]
[320797641,1711561876601,-500.0,0.0005452,120]
[320797642,1711561876612,-4994.03,0.0005452,120]
[320797643,1711561876622,-6977.94,0.0005452,120]
[320797644,1711561876632,-500.0,0.0005452,120]
[320797645,1711561876642,-1042.58,0.0005452,120]
[320797646,1711561876652,-500.0,0.0005452,120]
[320797647,1711561876662,-500.0,0.0005452,120]
[320797648,1711561876673,-818.62,0.0005452,120]
[320797649,1711561876687,-1312.03,0.0005452,120]
[320797650,1711561876697,-500.0,0.0005452,120]
[320797651,1711561876707,-1814.79,0.0005452,120]
[320797652,1711561876717,-1730.09,0.0005452,120]
[320797653,1711561876728,-500.0,0.0005452,120]
[320797654,1711561876739,-3092.64,0.0005452,120]
[320797655,1711561876750,-500.0,0.0005452,120]
[320797656,1711561876761,-500.0,0.0005452,120]
[320797657,1711561876772,-858.06,0.0005452,120]
[320797658,1711561876785,-500.0,0.0005452,120]
[320797659,1711561876797,-3331.35,0.0005452,120]
[320797660,1711561876809,-500.0,0.0005452,120]
[320797661,1711561876820,-1629.06,0.0005452,120]
[320797662,1711561876839,-1107.56,0.0005452,120]
[320797663,1711561876852,-500.0,0.0005452,120]
[320797664,1711561876982,-500.0,0.0005452,120]
[320797665,1711561876993,-1926.96,0.0005452,120]
[320797666,1711561877004,-5998.21,0.0005452,120]
[320797667,1711561877014,-1276.61,0.0005452,120]
[320797668,1711561877025,-547.99,0.0005452,120]
[320797669,1711561877036,-1204.74,0.0005452,120]
[320797670,1711561877047,-500.0,0.0005452,120]
[320797671,1711561877057,-978.47,0.0005452,120]
[320797672,1711561877067,-500.0,0.0005452,120]
[320797673,1711561877082,-500.0,0.0005452,120]
[320797674,1711561877094,-500.0,0.0005452,120]
[320797675,1711561877103,-500.0,0.0005452,120]
[320797676,1711561877113,-1112.11,0.0005452,120]
[320797677,1711561877123,-500.0,0.0005452,120]
[320797678,1711561877133,-158.036351,0.0005452,120]
[320797679,1711561877143,-5147.59,0.0005452,120]
[320797680,1711561877152,-500.0,0.0005452,120]
[320797681,1711561877162,-1278.89,0.0005452,120]
[320797682,1711561877172,-500.0,0.0005452,120]
[320797683,1711561877182,-1257.45,0.0005452,120]
[320797684,1711561877192,-500.0,0.0005452,120]
[320797685,1711561877203,-158.036351,0.0005452,120]
[320797686,1711561877213,-5642.74,0.0005452,120]
[320797687,1711561877222,-500.0,0.0005452,120]
[320797688,1711561877232,-679.21,0.0005452,120]
[320797689,1711561877243,-1894.45,0.0005452,120]
[320797690,1711561877252,-500.0,0.0005452,120]
[320797691,1711561877263,-1000.0,0.00054521,120]
[320797692,1711561877273,-200.0,0.00054527,30]
[320797693,1711561877283,-800.0,0.00054527,30]
[320797694,1711561877293,-500.0,0.00054527,30]
[320797695,1711561877304,-200.0,0.00054527,30]
[320797696,1711561877314,-154.75091202,0.00054527,60]
[320797697,1711561877324,-151.0,0.00054527,120]
[320797698,1711561877339,-1000.0,0.00054531,120]
[320797699,1711561877349,-1000.0,0.00054542,120]
[320797700,1711561877359,-150.0,0.00054548,7]
[320797701,1711561877370,-15000.0,0.0005455,14]
[320797702,1711561877380,-1045.78476946,0.0005455,120]
[320797703,1711561877390,-151.0,0.0005455,120]
[320797704,1711561877401,-479.754063,0.0005455,120]
[320797705,1711561877411,-479.754063,0.0005455,120]
[320797706,1711561877421,-1000.0,0.00054552,120]
[320797707,1711561877432,-1000.0,0.00054563,120]
[320797708,1711561877442,-150.50617537,0.00054563,60]
[320797709,1711561877452,-152.91494694,0.00054573,60]
[320797710,1711561877462,-150.0,0.00054573,7]
[320797711,1711561877471,-1000.0,0.00054573,120]
[320797712,1711561877482,-1000.0,0.00054584,120]
[320797713,1711561877492,-1000.0,0.00054594,120]
[320797714,1711561877502,-150.0,0.00054596,7]
[320797715,1711561877512,-151.0,0.00054602,120]
[320797716,1711561877523,-1000.0,0.00054605,120]
[320797717,1711561877534,-302.296389,0.00054605,120]
[320797718,1711561877544,-302.296389,0.00054605,120]
[320797719,1711561877555,-151.0,0.00054605,120]
[320797720,1711561877565,-151.0,0.00054605,120]
[320797721,1711561877578,-1000.0,0.00054615,120]
[320797722,1711561877588,-1000.0,0.00054626,120]
[320797723,1711561877598,-1000.0,0.00054636,120]
[320797724,1711561877608,-1000.0,0.00054647,120]
[320797725,1711561877618,-1000.0,0.00054658,120]
[320797726,1711561877627,-150.0,0.00054659,7]
[320797727,1711561877637,-1000.0,0.00054668,120]
[320797728,1711561877647,-157.09370442,0.00054673,60]
[320797729,1711561877657,-155.61103005,0.00054678,60]
[320797730,1711561877667,-1000.0,0.00054679,120]
[320797731,1711561877677,-1000.0,0.00054689,120]
[320797732,1711561877687,-39284.55078956,0.00054691,30]
[320797733,1711561877697,-151.0,0.00054691,60]
[320797734,1711561877706,-150.50617537,0.00054691,60]
[320797735,1711561877716,-150.0,0.00054697,7]
[320797736,1711561877726,-1000.0,0.000547,120]
[320797737,1711561877735,-533.89,0.000547,7]
[320797738,1711561877745,-150.0,0.000547,12]
[320797739,1711561877755,-889.0,0.000547,30]
[320797740,1711561877765,-704.0,0.000547,30]
[320797741,1711561877775,-961.0,0.00054709,120]
[320797742,1711561877785,-1381.0,0.00054709,120]
[320797743,1711561877795,-458.0,0.00054709,120]
[320797744,1711561877805,-2420.0,0.00054709,120]
[320797745,1711561877815,-535.0,0.00054709,120]
[320797746,1711561877828,-1225.0,0.00054709,120]
[320797747,1711561877838,-1267.0,0.00054709,120]
[320797748,1711561877850,-206.64,0.00054709,120]
[320797749,1711561877860,-604.0,0.00054709,120]
[320797750,1711561877872,-2939.536,0.00054709,120]
[320797751,1711561877882,-1029.874,0.00054709,120]
[320797752,1711561877892,-396.0,0.00054709,120]
[320797753,1711561877902,-1461.0,0.00054709,120]
[320797754,1711561877912,-2423.0,0.00054709,120]
[320797755,1711561877922,-1626.0,0.00054709,120]
[320797756,1711561877933,-213.0,0.00054709,2]
[320797757,1711561877942,-1176.0,0.00054709,120]
[320797758,1711561877953,-2443.0,0.00054709,120]
[320797759,1711561877963,-1046.0,0.00054709,120]
[320797760,1711561877972,-1000.0,0.0005471,120]
[320797761,1711561877982,-1000.0,0.00054721,120]
[320797762,1711561877992,-1000.0,0.00054731,120]
[320797763,1711561878002,-150.0,0.00054738,7]
[320797764,1711561878012,-1000.0,0.00054742,120]
[320797765,1711561878021,-151.55112149,0.00054743,60]
[320797766,1711561878031,-2000.0,0.00054747,120]
[320797767,1711561878042,-158.63652466,0.00054749,60]
[320797768,1711561878053,-1000.0,0.00054752,120]
[320797769,1711561878062,-150.0,0.00054761,7]
[320797770,1711561878072,-1000.0,0.00054763,120]
[320797771,1711561878084,-1000.0,0.00054773,120]
[320797772,1711561878094,-1474.0,0.0005478,15]
[320797773,1711561878104,-191.520487,0.0005478,120]
[320797774,1711561878113,-191.520487,0.0005478,120]
[320797775,1711561878123,-250.635261,0.0005478,120]
[320797776,1711561878133,-250.635261,0.0005478,120]
[320797777,1711561878143,-151.576563,0.0005478,120]
[320797778,1711561878153,-240.242065,0.0005478,120]
[320797779,1711561878163,-151.576563,0.0005478,120]
[320797780,1711561878172,-240.242065,0.0005478,120]
[320797781,1711561878182,-151.0,0.0005478,120]
[320797782,1711561878192,-342.284432,0.0005478,120]
[320797783,1711561878201,-342.284432,0.0005478,120]
[320797784,1711561878212,-1000.0,0.00054784,120]
[320797785,1711561878222,-1474.0,0.0005479,15]
[320797786,1711561878231,-500.0,0.00054793,90]
[320797787,1711561878241,-500.0,0.00054793,90]
[320797788,1711561878250,-1000.0,0.00054793,90]
[320797789,1711561878260,-1207.03,0.00054793,120]
[320797790,1711561878270,-1000.0,0.00054794,120]
[320797791,1711561878280,-1000.0,0.00054794,120]
[320797792,1711561878290,-526.0,0.00054794,120]
[320797793,1711561878299,-500.0,0.00054794,120]
[320797794,1711561878309,-500.0,0.00054794,120]
[320797795,1711561878319,-500.0,0.00054794,120]
[320797796,1711561878331,-500.0,0.00054794,120]
[320797797,1711561878341,-500.0,0.00054794,120]
[320797798,1711561878351,-500.0,0.00054794,120]